bitfinex-derivatives/quotes_BTCF0:USTF0_20241116
["timestamp","ask_amount","ask_price","bid_price","bid_amount"]
[1731758834755,0.31639964,91143.0,91126.0,0.00056]
[1731758834756,0.054852,91130.0,91129.0,0.2628401]
[1731758834955,0.054852,91130.0,91122.0,0.2628401]
[1731758834956,0.054855,91126.0,91122.0,0.2628401]
[1731758835158,0.13121637,91125.0,91120.0,0.2628401]
[1731758835357,0.18607237,91125.0,91121.0,0.2628401]
[1731758835658,0.13121637,91125.0,91121.0,0.2628401]
[1731758835847,0.46464213,91122.0,91121.0,0.2628401]
[1731758836048,0.054858,91121.0,91119.0,0.2628401]
[1731758836248,0.46464213,91122.0,91115.0,0.2628401]
[1731758836249,0.054859,91119.0,91115.0,0.2628401]
[1731758836552,0.054859,91119.0,91116.0,0.01715538]
[1731758836750,0.18602344,91119.0,91117.0,0.01715538]
[1731758836950,0.18602344,91119.0,91118.0,0.01715538]
[1731758837254,0.05486,91118.0,91114.0,0.00011039]
[1731758838249,0.05486,91118.0,91117.0,0.2628401]
[1731758838848,0.05486,91118.0,91114.0,0.00011039]
[1731758838849,0.05486,91118.0,91116.0,0.2628401]
[1731758839249,0.054861,91116.0,91114.0,0.00011039]
[1731758841348,0.10384213,91115.0,91102.0,0.2628401]
[1731758841555,0.46464213,91103.0,91100.0,0.3628401]
[1731758841853,0.35479859,91103.0,91101.0,0.2628401]
[1731758842051,0.0331,91102.0,91100.0,0.3628401]
[1731758842249,0.0331,91102.0,91100.0,0.1]
[1731758842451,0.0331,91102.0,91096.0,0.32847957]
[1731758842452,0.054875,91093.0,91088.0,0.00011942]
[1731758842657,0.10384213,91089.0,91088.0,0.00011942]
[1731758843160,0.13112013,91108.0,91088.0,0.79412155]
[1731758843460,0.16415607,91119.0,91088.0,0.79412155]
[1731758843461,0.0051,91109.0,91098.0,0.3608]
[1731758843656,0.054862,91114.0,91099.0,0.033]
[1731758844156,0.3608,91101.0,91089.0,0.0318]
[1731758844351,0.10384213,91092.0,91089.0,0.0318]
[1731758844660,0.3608,91091.0,91089.0,0.0318]
[1731758844848,0.3608,91091.0,91082.0,0.0328]
[1731758845050,0.08534,91090.0,91082.0,0.0328]
[1731758845856,0.140217,91090.0,91080.0,0.08799577]
[1731758846254,0.140217,91090.0,91080.0,0.033]
[1731758847165,0.140217,91090.0,91079.0,0.00164647]
[1731758848557,0.140217,91090.0,91078.0,0.0318]
[1731758848763,0.140217,91090.0,91067.0,0.3608]
[1731758848764,0.08534,91090.0,91067.0,0.3608]
[1731758848950,0.08534,91090.0,91059.0,0.3608]
[1731758848951,0.10384213,91071.0,91059.0,0.00056]
[1731758849151,0.3608,91076.0,91050.0,0.3608]
[1731758849356,0.054886,91075.0,91050.0,0.3608]
[1731758849562,0.10384213,91071.0,91058.0,0.3608]
[1731758849763,0.10384213,91071.0,91059.0,0.00013648]
[1731758850067,9.288e-05,91070.0,91059.0,0.00013648]
[1731758850561,0.46464213,91063.0,91059.0,0.00013648]
[1731758851562,0.054893,91062.0,91059.0,0.00013648]
[1731758852952,0.02196789,91060.0,91059.0,0.00013648]
[1731758855967,0.75525002,91060.0,91020.0,0.26232496]
[1731758856166,0.10384213,91021.0,91018.0,0.3608]
[1731758856357,0.415712,91032.0,91018.0,0.3608]
[1731758856358,0.10384213,91022.0,91018.0,0.3608]
[1731758860460,0.054919,91019.0,91018.0,0.3608]
[1731758860765,0.15890273,91019.0,91017.0,9.23e-05]
[1731758863265,0.10398373,91019.0,91001.0,0.0304]
[1731758863465,0.15877213,91002.0,91001.0,0.0304]
[1731758863671,0.15877213,91002.0,90989.0,0.0327]
[1731758863869,0.15877213,91002.0,90980.0,0.3608]
[1731758863870,0.46464213,91001.0,90980.0,0.3608]
[1731758864063,0.10384213,90981.0,90980.0,0.3608]
[1731758864268,0.15878413,90981.0,90965.0,0.41160193]
[1731758864475,0.3608,90989.0,90965.0,0.35580193]
[1731758864476,0.10384213,90966.0,90965.0,0.35580193]
[1731758864767,0.10384213,90972.0,90965.0,0.35588443]
[1731758864964,0.10384213,90972.0,90971.0,0.3608]
[1731758865167,0.054942,90981.0,90971.0,0.6608]
[1731758865371,0.10384213,90972.0,90968.0,0.3608]
[1731758866272,0.10384213,90972.0,90965.0,8.25e-05]
[1731758866473,0.10384213,90972.0,90967.0,0.3608]
[1731758868173,0.054942,90982.0,90968.0,0.3298]
[1731758868372,0.10384213,90986.0,90976.0,0.3608]
[1731758868568,0.054944,90979.0,90977.0,0.0301]
[1731758868778,0.10384213,90978.0,90977.0,0.0301]
[1731758869480,0.054944,90979.0,90977.0,0.0301]
[1731758869682,0.3608,91031.0,90978.0,0.69056]
[1731758869881,0.10384213,91025.0,91004.0,0.3608]
[1731758870084,0.10384213,91009.0,91004.0,0.3608]
[1731758870381,0.10384213,91009.0,90993.0,0.3608]
[1731758870571,0.054932,90998.0,90993.0,0.3608]
[1731758870771,0.05493,91002.0,90993.0,0.3608]
[1731758870979,0.054931,91000.0,90993.0,0.3608]
[1731758871174,0.054927,91007.0,90993.0,0.3608]
[1731758871381,0.05493,91002.0,90993.0,0.3608]
[1731758872182,0.10990977,91011.0,90993.0,0.3608]
[1731758872383,0.054925,91011.0,90993.0,0.3608]
[1731758872685,0.054926,91009.0,90993.0,0.3608]
[1731758874278,0.054926,91009.0,90996.0,0.10384213]
[1731758874787,0.08565,91008.0,90996.0,0.10384213]
[1731758875282,0.3608,91007.0,90996.0,0.10384213]
[1731758875482,0.3608,91007.0,90993.0,0.3608]
[1731758877889,0.08565,91008.0,90993.0,0.3608]
[1731758880284,0.08565,91008.0,90996.0,0.10384213]
[1731758880487,0.08565,91008.0,90997.0,0.054933]
[1731758880680,0.08565,91008.0,91003.0,0.10384213]
[1731758881274,0.08565,91008.0,91004.0,0.087328]
[1731758881880,0.08565,91008.0,91004.0,0.0324]
[1731758882487,0.08565,91008.0,91006.0,0.054927]
[1731758883081,0.21640422,91008.0,91006.0,0.054927]
[1731758883285,0.03213934,91019.0,91007.0,0.43362454]
[1731758883490,0.0001416,91019.0,91018.0,0.41572]
[1731758883679,0.0001416,91019.0,91018.0,0.45143391]
[1731758883883,0.0001416,91019.0,91018.0,0.78103391]
[1731758884086,0.0001416,91019.0,91018.0,0.3608]
[1731758884479,0.0001416,91019.0,91011.0,0.054924]
[1731758884684,0.0001416,91019.0,91017.0,0.05492]
[1731758885289,0.0001416,91019.0,91018.0,0.01717167]
[1731758886386,0.0001416,91019.0,91018.0,0.40169167]
[1731758887293,0.0001416,91019.0,91018.0,0.42916647]
[1731758887792,0.0001416,91019.0,91018.0,0.04464647]
[1731758888500,0.0001416,91019.0,91018.0,0.67424647]
[1731758888698,0.0001416,91019.0,91018.0,0.6296]
[1731758888995,0.0001416,91019.0,91018.0,0.70996015]
[1731758889301,0.0001416,91019.0,91018.0,0.74910938]
[1731758889994,0.0001416,91019.0,91018.0,0.74910922]
[1731758890195,0.0001416,91019.0,91018.0,1.0741937]
[1731758890401,0.0001416,91019.0,91018.0,1.10990824]
[1731758890604,0.0051,91032.0,91018.0,1.07419177]
[1731758890893,0.0051,91038.0,91036.0,0.054909]
[1731758891096,0.3608,91048.0,91037.0,0.37416125]
[1731758891290,0.3608,91048.0,91038.0,0.14848338]
[1731758891488,0.3608,91048.0,91038.0,0.47800338]
[1731758891685,0.3608,91048.0,91038.0,0.37416125]
[1731758891890,0.3608,91048.0,91034.0,0.13764]
[1731758891891,0.3608,91048.0,91039.0,0.04464125]
[1731758892195,0.3608,91048.0,91040.0,0.09954825]
[1731758892398,0.3608,91048.0,91041.0,0.04464125]
[1731758892589,0.3608,91048.0,91042.0,0.04464125]
[1731758892789,0.3608,91048.0,91043.0,0.04464125]
[1731758892995,0.3608,91048.0,91044.0,0.04464125]
[1731758893197,0.3608,91048.0,91044.0,0.37416125]
[1731758893601,0.3608,91048.0,91044.0,0.3741569]
[1731758893803,0.3608,91051.0,91044.0,0.3741569]
[1731758895000,0.3608,91051.0,91045.0,0.0446369]
[1731758895186,0.3608,91051.0,91046.0,0.01716804]
[1731758895393,0.3608,91051.0,91047.0,0.01716804]
[1731758895693,0.3608,91051.0,91037.0,0.90228213]
[1731758895694,0.3608,91051.0,91048.0,0.01716804]
[1731758895889,0.3608,91051.0,91049.0,0.01716804]
[1731758896086,0.3608,91051.0,91037.0,0.3608]
[1731758896292,0.3608,91051.0,91025.0,0.3608]
[1731758896293,0.054907,91039.0,91025.0,0.3608]
[1731758896595,0.0634,91038.0,91020.0,0.1376]
[1731758896988,0.0634,91038.0,91031.0,0.10384213]
[1731758897807,0.0634,91038.0,91017.0,0.05701584]
[1731758897808,0.054917,91023.0,91017.0,0.00164772]
[1731758898101,0.10384213,91032.0,91018.0,0.01717222]
[1731758898102,0.054919,91019.0,91018.0,0.01717222]
[1731758898306,0.054919,91019.0,91017.0,0.00164772]
[1731758903903,0.0317,91022.0,91007.0,0.05506841]
[1731758903904,0.10384213,91018.0,91007.0,0.00014241]
[1731758904104,0.10384213,91018.0,90992.0,0.6282158]
[1731758904105,0.054929,91004.0,90992.0,0.00056]
[1731758904316,0.46464213,91011.0,90989.0,0.05452911]
[1731758904317,0.05493,91002.0,90989.0,0.05452911]
[1731758904617,0.0312,91001.0,90988.0,0.14688]
[1731758904800,0.0312,91001.0,90993.0,0.3608]
[1731758905001,0.0312,91001.0,90988.0,0.14688]
[1731758905201,0.0312,91001.0,90983.0,0.46528213]
[1731758905202,0.0312,91001.0,90994.0,9.054e-05]
[1731758905411,0.054933,90997.0,90994.0,9.054e-05]
[1731758905606,0.0309,90996.0,90994.0,9.054e-05]
[1731758906213,0.054939,90986.0,90983.0,0.31099054]
[1731758906507,0.3608,90995.0,90983.0,0.31099054]
[1731758906508,0.05494,90985.0,90983.0,0.31099054]
[1731758906707,0.10384213,90994.0,90983.0,0.31099054]
[1731758906908,0.415734,90995.0,90983.0,0.31099054]
[1731758907098,0.3608,90995.0,90983.0,0.41483267]
[1731758907297,0.0309,90996.0,90984.0,0.00011106]
[1731758907809,0.3608,90995.0,90984.0,0.00011106]
[1731758908312,0.054935,90993.0,90984.0,0.00011106]
[1731758908906,0.3608,90995.0,90984.0,0.00011106]
[1731758908907,0.054936,90991.0,90984.0,0.00011106]
[1731758913712,0.054937,90990.0,90984.0,0.00011106]
[1731758914515,0.054939,90987.0,90984.0,0.00011106]
[1731758915107,0.3608,90985.0,90972.0,0.00164842]
[1731758915304,0.3608,90976.0,90972.0,0.00164842]
[1731758915506,0.0311,90975.0,90972.0,0.00164842]
[1731758916023,0.0315,90974.0,90972.0,0.00164842]
[1731758916205,0.0315,90974.0,90973.0,0.0001199]
[1731758918321,0.05858,90975.0,90973.0,0.0550669]
[1731758918507,0.02748,90975.0,90974.0,0.32976]
[1731758919811,0.02748,90975.0,90974.0,0.47668]
[1731758921110,0.02748,90975.0,90974.0,0.14692]
[1731758922017,0.02748,90975.0,90974.0,0.47668]
[1731758922206,0.02748,90975.0,90974.0,0.14692]
[1731758923325,0.02748,90975.0,90973.0,0.0550669]
[1731758923326,0.02748,90975.0,90973.0,0.0001199]
[1731758923615,0.054947,90974.0,90973.0,0.0001199]
[1731758923928,0.0318,90974.0,90947.0,0.20183685]
[1731758924220,0.0318,90974.0,90946.0,0.10384213]
[1731758924405,0.0318,90974.0,90951.0,0.05496]
[1731758924610,0.00879,90973.0,90951.0,0.05496]
[1731758924804,0.054948,90972.0,90968.0,0.00012055]
[1731758925019,0.00879,90973.0,90968.0,0.00012055]
[1731758925020,0.05495,90969.0,90968.0,0.00012055]
[1731758925515,0.054957,90957.0,90955.0,0.3109]
[1731758925720,0.15879513,90964.0,90944.0,0.00056]
[1731758925908,0.15879513,90964.0,90942.0,0.05554895]
[1731758925909,0.10384213,90964.0,90951.0,0.05496]
[1731758926325,0.054957,90957.0,90945.0,0.054964]
[1731758926515,0.054957,90957.0,90946.0,9.35e-05]
[1731758926823,0.054957,90957.0,90946.0,0.0550565]
[1731758927023,0.0331,90956.0,90946.0,0.0550565]
[1731758927516,0.0331,90956.0,90947.0,0.01374689]
[1731758927718,0.0331,90956.0,90946.0,0.0550565]
[1731758927719,0.054959,90954.0,90948.0,0.01374689]
[1731758928021,0.054959,90954.0,90949.0,0.01374689]
[1731758928215,0.054959,90954.0,90950.0,0.01374689]
[1731758928417,0.05496,90952.0,90951.0,0.01374699]
[1731758928616,0.05496,90952.0,90946.0,0.0550565]
[1731758928926,0.0321,90951.0,90947.0,0.01374676]
[1731758929122,0.0321,90951.0,90950.0,0.3608]
[1731758929323,0.0635,90951.0,90950.0,0.01374676]
[1731758929819,0.0635,90951.0,90946.0,0.25179335]
[1731758930023,0.0635,90951.0,90950.0,0.01374709]
[1731758930318,0.0331,90956.0,90951.0,0.05496]
[1731758930521,0.0331,90956.0,90952.0,0.01374709]
[1731758930707,0.0331,90956.0,90953.0,0.01374709]
[1731758930911,0.0331,90956.0,90954.0,0.01374709]
[1731758931117,0.0331,90956.0,90952.0,0.05496]
[1731758931419,0.0321,90963.0,90953.0,0.01374638]
[1731758931616,0.0321,90963.0,90960.0,0.054955]
[1731758932521,0.0321,90963.0,90955.0,0.19673685]
[1731758932716,0.054955,90961.0,90956.0,0.01374634]
[1731758932918,0.054955,90961.0,90955.0,0.19673685]
[1731758933113,0.054957,90957.0,90956.0,0.01374634]
[1731758933325,0.0321,90963.0,90953.0,0.19673685]
[1731758933521,0.0321,90963.0,90954.0,0.01374642]
[1731758933711,0.0321,90963.0,90952.0,0.19673685]
[1731758933712,0.054958,90956.0,90951.0,0.19673685]
[1731758933911,0.054958,90956.0,90952.0,0.01374643]
[1731758934117,0.054958,90956.0,90953.0,0.01374643]
[1731758934323,0.054959,90954.0,90951.0,0.19673685]
[1731758934524,0.054959,90954.0,90949.0,0.054961]
[1731758934525,0.054959,90954.0,90952.0,0.01374716]
[1731758934719,0.0321,90963.0,90946.0,9.35e-05]
[1731758934720,0.05496,90952.0,90950.0,0.19673685]
[1731758934924,0.0312,90951.0,90949.0,0.19673685]
[1731758935132,0.086161,90951.0,90948.0,0.19673685]
[1731758935312,0.086161,90951.0,90949.0,0.01374757]
[1731758935512,0.086161,90951.0,90948.0,0.19673685]
[1731758935824,0.086161,90951.0,90949.0,0.01374757]
[1731758936018,0.086161,90951.0,90950.0,0.01374757]
[1731758936417,0.086161,90951.0,90946.0,9.35e-05]
[1731758936718,0.3608,90957.0,90950.0,0.06870813]
[1731758936919,0.3608,90957.0,90951.0,0.01374713]
[1731758937138,0.3608,90957.0,90950.0,0.054961]
[1731758937430,0.3608,90957.0,90951.0,0.01374713]
[1731758937622,0.3608,90957.0,90950.0,0.054961]
[1731758937921,0.087054,90963.0,90951.0,0.06870713]
[1731758938126,0.087054,90963.0,90955.0,0.3608]
[1731758938314,0.087054,90963.0,90956.0,0.01374612]
[1731758938518,0.087054,90963.0,90955.0,0.3608]
[1731758938725,0.087054,90963.0,90956.0,0.01374604]
[1731758938923,0.087054,90963.0,90957.0,0.01374604]
[1731758939128,0.087054,90963.0,90955.0,0.3608]
[1731758939329,0.087054,90963.0,90956.0,0.013746]
[1731758939517,0.087054,90963.0,90957.0,0.013746]
[1731758939713,0.01099,90962.0,90955.0,0.3608]
[1731758939917,0.01099,90962.0,90956.0,0.013746]
[1731758940123,0.01099,90962.0,90957.0,0.013746]
[1731758940324,0.01099,90962.0,90955.0,0.3608]
[1731758940523,0.01099,90962.0,90956.0,0.013746]
[1731758940733,0.01099,90962.0,90957.0,0.013746]
[1731758941033,0.054956,90958.0,90950.0,0.19673685]
[1731758941227,0.054956,90958.0,90949.0,0.054962]
[1731758941423,0.01099,90962.0,90950.0,0.0137473]
[1731758941726,0.054958,90956.0,90946.0,9.35e-05]
[1731758942031,0.054958,90956.0,90947.0,0.2104844]
[1731758942223,0.054958,90956.0,90948.0,0.01374755]
[1731758942423,0.054958,90956.0,90949.0,0.01374755]
[1731758942727,0.054958,90956.0,90950.0,0.01374755]
[1731758942928,0.3608,90957.0,90950.0,0.30057898]
[1731758943233,0.3608,90957.0,90956.0,0.054957]
[1731758944529,0.01099,90962.0,90961.0,0.054954]
[1731758945442,0.01099,90962.0,90961.0,0.50234121]
[1731758945731,0.01099,90962.0,90961.0,0.83023596]
[1731758945931,0.01099,90962.0,90961.0,0.85943095]
[1731758946322,0.01099,90962.0,90961.0,0.20197908]
[1731758946919,0.01099,90962.0,90961.0,0.188234]
[1731758947119,0.01099,90962.0,90959.0,0.19728898]
[1731758947425,0.054956,90959.0,90958.0,0.13328]
[1731758948919,0.054957,90957.0,90955.0,0.19728898]
[1731758950023,0.054957,90957.0,90952.0,0.19728898]
[1731758950223,0.054958,90955.0,90951.0,0.19728898]
[1731758950631,0.054958,90955.0,90952.0,0.19728898]
[1731758950935,0.00879,90954.0,90952.0,0.19728898]
[1731758951129,0.00879,90954.0,90949.0,0.26302227]
[1731758951429,0.00879,90954.0,90950.0,0.01374727]
[1731758951622,0.00879,90954.0,90951.0,0.26302227]
[1731758951823,0.00879,90954.0,90950.0,0.26302227]
[1731758952022,0.00879,90954.0,90946.0,9.35e-05]
[1731758952023,0.05496,90952.0,90949.0,0.26302227]
[1731758952223,0.05496,90952.0,90950.0,0.27676955]
[1731758952420,0.05496,90952.0,90949.0,0.26302227]
[1731758952618,0.05496,90952.0,90951.0,0.26302227]
[1731758952825,0.00879,90954.0,90951.0,0.26302227]
[1731758953240,0.00879,90954.0,90952.0,0.26302227]
[1731758953425,0.00879,90954.0,90951.0,0.26302227]
[1731758953625,0.00879,90954.0,90952.0,0.26302227]
[1731758953824,0.00879,90954.0,90953.0,0.26302227]
[1731758954835,0.063749,90954.0,90949.0,0.26302227]
[1731758955025,0.05496,90952.0,90950.0,0.26302227]
[1731758955236,0.054961,90951.0,90948.0,0.26302227]
[1731758955733,0.054961,90951.0,90946.0,9.35e-05]
[1731758955734,0.054961,90950.0,90947.0,0.26302227]
[1731758956544,0.054961,90950.0,90949.0,0.26302227]
[1731758957527,0.054961,90950.0,90949.0,0.16202227]
[1731758957837,0.3608,90952.0,90946.0,9.35e-05]
[1731758957838,0.054963,90947.0,90946.0,9.35e-05]
[1731758958648,0.32988,90946.0,90931.0,0.00164921]
[1731758958854,0.3608,90935.0,90932.0,0.01718812]
[1731758959050,0.3608,90935.0,90931.0,0.00164921]
[1731758959051,0.13120929,90934.0,90931.0,0.00164921]
[1731758959352,0.36160001,90935.0,90931.0,0.00164921]
[1731758959666,0.3608,90935.0,90932.0,0.00013434]
[1731758959853,0.3608,90935.0,90917.0,0.46117475]
[1731758959854,0.054982,90916.0,90915.0,0.32789475]
[1731758960061,0.054982,90916.0,90908.0,0.00056]
[1731758960062,0.59792213,90916.0,90908.0,0.00056]
[1731758960366,0.59792213,90916.0,76100.0,0.04]
[1731758960569,0.3608,90875.0,90860.0,0.42738429]
[1731758960768,0.18235975,90915.0,90829.0,0.46061788]
[1731758960769,0.3558,90832.0,90829.0,0.46061788]
[1731758961074,0.10384213,90828.0,90824.0,0.09701819]
[1731758961254,0.3608,90825.0,90808.0,0.05408188]
[1731758961454,0.29290717,90811.0,90810.0,0.055045]
[1731758961665,0.06017596,90811.0,90810.0,0.85007781]
[1731758961961,0.22780871,90824.0,90811.0,0.33048747]
[1731758962166,0.22745641,90825.0,90823.0,0.3608]
[1731758962351,0.21779853,90825.0,90824.0,0.67128552]
[1731758962551,0.35925441,90861.0,90825.0,0.00011188]
[1731758962758,0.00056001,90866.0,90856.0,0.3608]
[1731758963056,0.16245102,90863.0,90857.0,0.558137]
[1731758963254,0.16245102,90865.0,90857.0,0.50312]
[1731758963561,0.12987753,90876.0,90864.0,1.345813]
[1731758963862,0.16245102,90885.0,90875.0,0.3608]
[1731758964058,0.16245102,90885.0,90876.0,0.13336]
[1731758964267,0.16245102,90883.0,90876.0,0.13336]
[1731758964461,0.16245102,90886.0,90876.0,0.13336]
[1731758964659,0.16245102,90885.0,90876.0,0.13336]
[1731758964862,0.055004,90879.0,90876.0,0.13336]
[1731758965063,0.16245102,90879.0,90876.0,0.13336]
[1731758965265,0.3608,90884.0,90876.0,0.13336]
[1731758965461,0.19494122,90880.0,90876.0,0.13336]
[1731758965657,0.19494122,90883.0,90876.0,0.13336]
[1731758965964,0.16209564,90880.0,90876.0,0.13336]
[1731758966160,0.16209564,90879.0,90876.0,0.13336]
[1731758966359,0.16209564,90880.0,90876.0,0.13336]
[1731758966569,0.16209564,90887.0,90880.0,0.055003]
[1731758966864,0.3608,90892.0,90879.0,0.93]
[1731758966865,0.055003,90880.0,90879.0,0.00092]
[1731758967071,0.3608,90882.0,90870.0,0.13336]
[1731758967267,0.16198195,90875.0,90870.0,0.13336]
[1731758967569,0.16198195,90876.0,90870.0,0.13336]
[1731758967770,0.16198195,90877.0,90870.0,0.13336]
[1731758967969,0.16198195,90879.0,90870.0,0.13336]
[1731758968162,0.16198195,90878.0,90870.0,0.13336]
[1731758968462,0.16198195,90877.0,90870.0,0.13336]
[1731758968861,0.16198195,90878.0,90871.0,0.3608]
[1731758969063,0.16198195,90879.0,90871.0,0.3608]
[1731758969265,0.16198195,90878.0,90871.0,0.3608]
[1731758969863,0.16198195,90880.0,90871.0,0.415808]
[1731758970163,0.12946508,90872.0,90871.0,0.415808]
[1731758970363,0.16198195,90879.0,90871.0,0.415808]
[1731758970664,0.16198195,90880.0,90871.0,0.415808]
[1731758970872,0.3608,90884.0,90871.0,0.415808]
[1731758970873,0.16198195,90882.0,90879.0,0.055004]
[1731758971060,0.3608,90884.0,90879.0,0.055004]
[1731758971563,0.3608,90884.0,90881.0,0.055003]
[1731758971759,0.16198195,90889.0,90883.0,0.3608]
[1731758971974,0.16198195,90893.0,90885.0,0.055]
[1731758972272,0.0332,90896.0,90883.0,0.3608]
[1731758972273,0.3608,90890.0,90883.0,0.3608]
[1731758972458,0.12945539,90885.0,90883.0,0.3608]
[1731758972668,0.15695539,90884.0,90883.0,0.3608]
[1731758972865,0.0275,90884.0,90883.0,0.13632]
[1731758973062,0.0275,90884.0,90883.0,1.06632]
[1731758973265,0.18948195,90884.0,90883.0,0.93]
[1731758973467,0.18948195,90884.0,90861.0,0.055015]
[1731758973468,0.71838,90884.0,90861.0,0.055015]
[1731758973772,0.71838,90884.0,90859.0,0.36984]
[1731758973773,0.3608,90868.0,90866.0,0.13632]
[1731758974263,0.12937975,90868.0,90867.0,0.055011]
[1731758974463,0.5225455,90874.0,90867.0,0.765011]
[1731758974662,0.5225455,90874.0,90868.0,0.13632]
[1731758974874,0.3608,90874.0,90868.0,0.13632]
[1731758975059,0.38886001,90884.0,90868.0,0.13632]
[1731758975060,0.12939422,90880.0,90871.0,0.15701621]
[1731758975264,0.38886001,90884.0,90871.0,0.15701621]
[1731758975265,0.12939422,90882.0,90872.0,0.01719659]
[1731758975477,0.055004,90880.0,90874.0,0.3608]
[1731758975669,0.055006,90876.0,90874.0,0.3608]
[1731758975873,0.52211119,90875.0,90873.0,0.13632]
[1731758976076,0.3927,90875.0,90867.0,0.71092]
[1731758976376,0.055012,90867.0,90865.0,0.00173361]
[1731758976672,0.3604,90866.0,90865.0,0.00173361]
[1731758976875,0.3604,90866.0,90865.0,0.05674561]
[1731758977063,0.3604,90866.0,90865.0,0.19306561]
[1731758977466,0.3604,90866.0,90865.0,0.21026488]
[1731758978470,0.36309,90866.0,90865.0,0.07394488]
[1731758978676,0.36309,90866.0,90865.0,0.21026488]
[1731758979073,0.36309,90866.0,90865.0,0.07394488]
[1731758979270,0.36309,90866.0,90865.0,0.21026488]
[1731758979576,0.36309,90866.0,90865.0,0.21030488]
[1731758979973,0.36309,90866.0,90865.0,0.19310561]
[1731758980379,0.36309,90866.0,90865.0,0.21030474]
[1731758981575,0.36309,90866.0,90865.0,0.21030478]
[1731758981772,0.36309,90866.0,90865.0,0.54046478]
[1731758982377,0.36309,90866.0,90865.0,0.56798299]
[1731758982882,0.36309,90866.0,90865.0,1.38263334]
[1731758983083,0.00269,90866.0,90865.0,1.38263334]
[1731758983390,0.00269,90866.0,90865.0,1.33791596]
[1731758983577,0.00269,90866.0,90865.0,1.24626972]
[1731758983777,0.00269,90866.0,90865.0,1.05246972]
[1731758983982,0.00269,90866.0,90865.0,1.06622533]
[1731758984387,0.00269,90866.0,90865.0,1.05246783]
[1731758984587,0.36349,90866.0,90865.0,0.96157543]
[1731758984780,0.36349,90866.0,90865.0,0.94781748]
[1731758985287,0.5766533,90866.0,90865.0,0.75644548]
[1731758985475,0.055023,90848.0,90841.0,0.191387]
[1731758985674,0.3608,90842.0,90841.0,0.191387]
[1731758985883,0.52315207,90842.0,90841.0,0.191387]
[1731758986187,0.41431464,90842.0,90841.0,0.191387]
[1731758986384,0.41431464,90842.0,90841.0,0.52176873]
[1731758986385,0.05351464,90842.0,90841.0,0.52176873]
[1731758986683,0.13757349,90851.0,90849.0,0.055022]
[1731758986887,0.16249929,90851.0,90849.0,0.055022]
[1731758987076,0.3608,90859.0,90858.0,0.055017]
[1731758987279,0.59804414,90859.0,90858.0,0.055017]
[1731758987675,0.055021,90852.0,90850.0,0.71]
[1731758987887,0.055023,90848.0,90841.0,0.00014173]
[1731758988189,0.3608,90842.0,90841.0,0.00014173]
[1731758988378,0.3608,90842.0,90841.0,0.13650173]
[1731758989092,0.3608,90842.0,90841.0,0.00014173]
[1731758989285,0.52341922,90842.0,90841.0,0.13650173]
[1731758989490,0.3608,90842.0,90841.0,0.13650173]
[1731758989989,0.0326,90850.0,90841.0,0.13650173]
[1731758990179,0.39240001,90851.0,90846.0,0.15700003]
[1731758990180,0.05351421,90849.0,90846.0,0.15700003]
[1731758990383,0.3608,90851.0,90846.0,0.15700003]
[1731758990578,0.49115714,90851.0,90846.0,0.15700003]
[1731758990781,0.3608,90851.0,90849.0,0.055022]
[1731758992981,0.16295279,90854.0,90853.0,0.05502]
[1731758993181,0.16295279,90856.0,90855.0,0.055018]
[1731758993405,0.16295279,90857.0,90855.0,0.055018]
[1731758993581,0.3608,90864.0,90850.0,0.13636]
[1731758993582,0.16295279,90858.0,90857.0,0.055017]
[1731758993781,0.3608,90864.0,90862.0,0.055014]
[1731758993991,0.3608,90864.0,90855.0,0.3608]
[1731758994183,0.07424758,90866.0,90863.0,0.3608]
[1731758994492,0.0051,90875.0,90874.0,0.055007]
[1731758994695,0.16320169,90881.0,90879.0,0.055004]
[1731758994892,0.16320169,90881.0,90880.0,0.13636]
[1731758995096,0.16320169,90882.0,90880.0,0.13636]
[1731758995288,0.16320169,90882.0,90864.0,7.986e-05]
[1731758995598,0.16318973,90867.0,90866.0,0.055012]
[1731758995780,0.16318973,90872.0,90869.0,0.05501]
[1731758995988,0.36136001,90884.0,90866.0,0.15700003]
[1731758995989,0.16319124,90870.0,90866.0,0.15700003]
[1731758996284,0.16319124,90872.0,90869.0,0.3608]
[1731758996490,0.0051,90880.0,90879.0,0.055004]
[1731758996491,0.16319124,90880.0,90879.0,0.055004]
[1731758996786,0.16319124,90882.0,90881.0,0.055003]
[1731758997085,0.3608,90884.0,90883.0,0.055002]
[1731758997278,0.41428866,90884.0,90883.0,0.055002]
[1731758997483,0.41428866,90884.0,90883.0,0.07219719]
[1731758997983,0.41428866,90884.0,90883.0,0.20855722]
[1731758998286,0.41428866,90884.0,90883.0,0.191362]
[1731758998596,0.05348866,90884.0,90883.0,0.191362]
[1731759000195,0.05348866,90884.0,90883.0,0.20855739]
[1731759000982,0.52397033,90885.0,90883.0,0.20855739]
[1731759001191,0.52397033,90885.0,90884.0,0.01719539]
[1731759001493,0.3608,90885.0,90884.0,0.01719539]
[1731759001691,0.16317033,90885.0,90884.0,0.01719544]
[1731759001895,0.16317033,90892.0,90884.0,0.01719544]
[1731759002087,0.3608,90894.0,90885.0,0.01719544]
[1731759002389,0.3608,90894.0,90881.0,0.36988]
[1731759002390,0.055002,90882.0,90881.0,0.36988]
[1731759002696,0.46929681,90882.0,90881.0,0.51036]
[1731759003183,0.46929864,90882.0,90881.0,0.51036]
[1731759003385,0.415802,90882.0,90881.0,0.51036]
[1731759003887,0.477102,90882.0,90881.0,0.51036]
[1731759004096,0.4221,90882.0,90873.0,0.00092]
[1731759004397,0.055009,90870.0,90864.0,0.00173041]
[1731759004593,0.055009,90870.0,90865.0,0.195492]
[1731759004896,0.3608,90874.0,90864.0,0.00265041]
[1731759004897,0.055012,90865.0,90864.0,0.00265041]
[1731759005192,0.055018,90856.0,90853.0,0.36988]
[1731759005501,0.3608,90854.0,90853.0,0.36988]
[1731759005796,0.3608,90854.0,90853.0,0.51036]
[1731759005992,0.85411775,90854.0,90841.0,0.00092]
[1731759006188,0.3608,90842.0,90841.0,0.14048]
[1731759006385,0.3608,90842.0,90841.0,0.04139064]
[1731759006588,0.415826,90842.0,90841.0,0.04139064]
[1731759006989,0.3608,90842.0,90840.0,0.055028]